Cogmind - Beta 14 @@@ ROGUE MODE // 2024.11.14 @ 14:06:21 Player: Fangrelle Result: Destroyed by G-47 Trooper with Particle Gun Performance ------------- Evolutions (0) 0 Regions Visited (1) 200 Robots Destroyed (20) 100 Value Destroyed (449) 449 Prototype IDs (0) 0 Alien Tech Used (0) 0 Bonus (0) 0 TOTAL SCORE: 749 Bonus ------- None Cogmind --------- Core Integrity 0/250 Matter 285/300 Energy 248/250 System Corruption 0% Temperature Warning (371) Movement Core (200) Ox3 Location -10/Materials Parts ------- > --- POWER (1) -------- Ion Engine > --- PROPULSION (2) --- (None) > --- UTILITY (2) ------ (None) > --- WEAPON (2) ------- Beam Cannon Beam Cannon > --- INVENTORY (5) ---- Small Storage Unit High-capacity Matter Pod (200) Signal Interpreter ECM Suite Datajack Peak State ------------ > --- POWER ------------ Ion Engine > --- PROPULSION ------- Light Treads Light Treads > --- UTILITY ---------- Small Storage Unit Improved Terrain Scanner > --- WEAPON ----------- EM Pulse Gun Medium Laser > --- INVENTORY -------- Ion Engine Wheel Wheel Tractor Beam Assault Rifle Mining Laser [Rating: 9] Favorites ----------- Power Ion Engine Engine Ion Engine Propulsion Wheel Treads Light Treads Leg Aluminum Leg Wheel Wheel Utility Tractor Beam Device Tractor Beam Storage Small Storage Unit Weapon EM Pulse Gun Energy Gun EM Pulse Gun Energy Cannon Beam Cannon Ballistic Gun Assault Rifle Special Weapon Mining Laser Build | -11 -10 ------- Run | Yrd Mat Slots Evolved . | . . Power . | . . Propulsion . | . . Utility . | . . Weapon . | . . Parts Attached 17 | 3 14 Power 2 | . 2 Engine 2 | . 2 Core . | . . Reactor . | . . Propulsion 4 | 2 2 Treads 2 | 2 . Leg . | . . Wheel 2 | . 2 Hover . | . . Flight . | . . Utility 5 | 1 4 Device 4 | 1 3 Storage 1 | . 1 Processor . | . . Hackware . | . . Protection . | . . Artifact . | . . Weapon 6 | . 6 Energy Gun 1 | . 1 Energy Cannon 2 | . 2 Ballistic Gun 2 | . 2 Ballistic Cannon . | . . Launcher . | . . Special Weapon 1 | . 1 Impact Weapon . | . . Slashing Weapon . | . . Piercing Weapon . | . . Special Melee Weapon . | . . Unidentified Prototypes . | . . Parts Lost 13 | . 13 Power 2 | . 2 Propulsion 3 | . 3 Utility 3 | . 3 Weapon 5 | . 5 Highest Loss Streak 7 | . 7 To Critical Strikes . | . . Average Slot Usage (%) 92 | . 92 Engine 13 | . 13 Treads 8 | . 8 Wheel 16 | . 16 Device 13 | . 13 Storage 12 | . 12 Energy Gun 14 | . 14 Energy Cannon 1 | . 1 Ballistic Gun 9 | . 9 Peak Build Rating 9 | 9 9 Average Rating 6 | 6 6 On Entrance 7 | 6 9 Naked Turns . | . . Heaviest Build 90 | 15 90 Greatest Support 40 | 40 40 Greatest Overweight (x) 8 | . 8 Average Overweight (x) 1 | . 1 Largest Inventory Capacity 25 | 8 25 Average Capacity 14 | 8 14 Most Carried 9 | 7 9 Average Carried 6 | 5 7 Final Capacity 8 | 8 5 Final Carried 6 | 6 5 Class Distribution -------------------- 100% | Mutant Dominant Class ---------------- Mutant | -10/Materials Resources | -11 -10 ----------- Run | Yrd Mat Matter Collected 673 | 200 473 Remotely 473 | . 473 Salvage Created 738 | 128 610 Parts 41 | 5 36 Haulers Intercepted 1 | . 1 Recyclers Shooed 2 | . 2 Parts Field Recycled . | . . Retrieved Matter . | . . Parts Self-Destructed . | . . Prevented . | . . Kills | -11 -10 ------- Run | Yrd Mat Combat Hostiles Destroyed 13 | . 13 Guns 13 | . 13 Classes Destroyed 7 | 2 5 Tunneler 1 | 1 . Hauler 1 | . 1 Recycler 1 | 1 . Operator 1 | . 1 Watcher 3 | . 3 Swarmer 3 | . 3 Grunt 10 | . 10 Best Kill Streak 4 | 2 4 Combat Bots Only 4 | . 4 Max Kills in Single Turn 1 | 1 1 Gunslinging . | . . Exploded . | . . Melee . | . . Uniques/NPCs Destroyed . | . . Combat | -11 -10 -------- Run | Yrd Mat Hostile Shots Fired 145 | . 145 Missed 34 | . 34 Damage Taken 1306 | . 1306 Core 250 | . 250 Absorbed by Shields . | . . Core Remaining (%) 100 | 100 . Volleys Fired 101 | 2 99 Largest 2 | 2 2 Hottest 120 | 90 120 Shots Fired 174 | 4 170 Gun 159 | 4 155 Cannon 12 | . 12 Launcher . | . . Special 3 | . 3 Kinetic 69 | . 69 Thermal 48 | 2 46 Explosive . | . . Electromagnetic 57 | 2 55 Robot Hit Streak 13 | 3 13 Robot Miss Streak 5 | 1 5 Penetration Max . | . . Secondary Targets 3 | . 3 Max Gunslinging Chain 1 | . 1 Shots Hit Robots 105 | 3 102 Core Hits 33 | 2 31 Critical Kills . | . . Critical Parts Destroyed . | . . Critical Strikes 1 | . 1 Burn 1 | . 1 Melee Attacks . | . . Impact . | . . Slashing . | . . Piercing . | . . Sneak Attacks . | . . Combat Hostiles . | . . Follow-up Attacks . | . . Damage Inflicted 1386 | 40 1346 Guns 1211 | 40 1171 Cannons 175 | . 175 Explosions . | . . Melee . | . . Ramming . | . . Kinetic 457 | . 457 Thermal 437 | 12 425 Explosive . | . . Electromagnetic 492 | 28 464 Impact . | . . Slashing . | . . Piercing . | . . Highest Corruption . | . . Average Corruption . | . . Corruption Purged . | . . Corruption Blocked . | . . Overload Shots . | . . Overflow Damage . | . . Projectiles . | . . Explosions . | . . Melee . | . . Knockbacks . | . . Impact . | . . Kinetic . | . . Secondary . | . . Self-Inflicted Damage . | . . Shots . | . . Rammed . | . . Targets Rammed . | . . Kicked . | . . Crushed . | . . Highest Temperature 409 | 30 409 Average Temperature 123 | 18 126 Received Heat Transfer 663 | . 663 Effects 2 | . 2 Shutdowns 1 | . 1 Short Circuit 1 | . 1 Siege Activations . | . . Robots Corrupted . | . . Combat Hostiles . | . . Parts Fried 3 | . 3 Impact Corruptions . | . . Robots Melted . | . . Combat Hostiles . | . . Parts Melted . | . . Heat Transferred 1221 | 37 1184 Parts Sabotaged . | . . Parts Stolen . | . . Parts Stripped . | . . Power Chain Reactions . | . . Alert | -11 -10 ------- Run | Yrd Mat Peak Influence 207 | 10 207 Initial 6 | . 6 Average 105 | 7 108 Maximum Alert Level 1 | . 1 Low Security (%) 90 | 100 90 Level 1 9 | . 9 Level 2 . | . . Level 3 . | . . Level 4 . | . . Level 5 . | . . High Security . | . . Max Security . | . . Squads Dispatched 4 | . 4 Investigation 2 | . 2 Extermination . | . . Reinforcement 2 | . 2 Assault . | . . Garrison . | . . Intercept . | . . Searches Triggered . | . . Construction Impeded . | . . Haulers Reinforced . | . . Active Scanning Responses . | . . Cargo Convoy Interrupts . | . . Stealth | -11 -10 --------- Run | Yrd Mat Distress Signals . | . . Communications Jammed . | . . Distress Signals . | . . Times Spotted 24 | . 24 Peak Tracking Total 4 | . 4 Tactical Retreats 1 | . 1 Traps | -11 -10 ------- Run | Yrd Mat Traps Triggered 1 | . 1 Indirectly . | . . Trap Hack Attempts . | . . Triggered . | . . Disarmed . | . . Reprogrammed . | . . Reused . | . . Traps Extracted . | . . Installed . | . . Triggered . | . . Machines | -11 -10 ---------- Run | Yrd Mat Machines Disabled . | . . Max in Single Turn . | . . Machines Repaired . | . . Machines Dismantled . | . . Machines Sabotaged . | . . Overloaded Fab Kills . | . . Hacking | -11 -10 --------- Run | Yrd Mat Machines Accessed 4 | . 4 Terminals 3 | . 3 Fabricators . | . . Repair Stations . | . . Recycling Units 1 | . 1 Scanalyzers . | . . Garrison Access . | . . Total Hacks 16 | . 16 Successful 12 | . 12 Failed 4 | . 4 Catastrophic . | . . Database Lockouts . | . . Manual 14 | . 14 Terminals 13 | . 13 Fabricators . | . . Repair Stations . | . . Recycling Units 3 | . 3 Scanalyzers . | . . Garrison Access . | . . Terminal Hacks 1 | . 1 Fabricator Index 1 | . 1 Fabricator Hacks . | . . Repair Station Hacks . | . . Recycling Unit Hacks 2 | . 2 Report Inventory 1 | . 1 Retrieve Components 1 | . 1 Scanalyzer . | . . Garrison Access Hacks . | . . Unauthorized Hacks 9 | . 9 Terminals 8 | . 8 Assimilate 3 | . 3 Botnet 3 | . 3 Operators 1 | . 1 Skim 1 | . 1 Fabricators . | . . Repair Stations . | . . Recycling Units 1 | . 1 Tunnel 1 | . 1 Scanalyzers . | . . Garrison Access . | . . Data Cores Recovered . | . . Used . | . . Hacking Detections 3 | . 3 Full Trace Events . | . . Feedback Events . | . . Feedback Blocked . | . . Robot Schematics Acquired . | . . Robots Built . | . . Authchips . | . . Time . | . . Total Robot Build Rating . | . . Part Schematics Acquired . | . . Parts Built . | . . Authchips . | . . Time . | . . Total Part Build Rating . | . . Parts Repaired . | . . Time . | . . Parts Recycled . | . . Recycled Matter . | . . Retrieved Matter . | . . Retrieved Components 9 | . 9 Parts Scanalyzed . | . . Part Schematics Acquired . | . . Parts Damaged . | . . Bothacking | -11 -10 ------------ Run | Yrd Mat Used RIF Installer . | . . Robots Hacked . | . . Non-combat . | . . Combat . | . . Robot Hacks Applied . | . . Relay Couplers Released . | . . Fabnet Peak Effective % . | . . Robots Rewired . | . . Allies Hacked . | . . Hacks Repelled . | . . Allies | -11 -10 -------- Run | Yrd Mat Total Allies 1 | . 1 Largest Group 1 | . 1 Highest-Rated Group 10 | . 10 Highest-Rated Ally 10 | . 10 Total Orders 1 | . 1 STAY 1 | . 1 Ally Attacks . | . . Total Damage . | . . Kills . | . . Allies Corrupted . | . . Allies Melted . | . . Intel | -11 -10 ------- Run | Yrd Mat Robot Analysis Total . | . . Derelict Logs Recovered . | . . Drone Launches . | . . Drone Recoveries . | . . Exploration | -11 -10 ------------- Run | Yrd Mat Turns Passed 893 | 26 867 Spaces Moved 453 | 9 444 Core 45 | . 45 Treads 104 | 9 95 Legs . | . . Wheels 304 | . 304 Hover . | . . Flight . | . . Fastest Speed 80 | 160 80 Average Speed 121 | 160 120 Slowest Speed 200 | 160 200 Overloaded Moves . | . . Propulsion Burnouts . | . . Robots Hopped . | . . Cave-ins Triggered . | . . Exploration Rate (%) 28 | 2 54 Regions Visited 1 Branch Regions . Pre-discovered Areas 1 | . 1 Known Exits Taken . | . . Unknown Exits Taken 1 | 1 . Scrap Searched . | . . Spaces Dug . | . . Terrain Destroyed . | . . Melee . | . . Projectile . | . . AOE . | . . Terrain Rammed . | . . Walls Destroyed . | . . Machines Disabled . | . . Actions | -11 -10 --------- Run | Yrd Mat Total 622 | 18 604 Wait 36 | . 36 Move 452 | 8 444 Hop . | . . Pick Up 11 | 3 8 Fast Attach 2 | . 2 Attach 12 | 3 9 Detach . | . . Swap 3 | . 3 Drop 5 | 2 3 Fire 101 | 2 99 Melee . | . . Ram . | . . Kick . | . . Crush . | . . Escape Stasis . | . . Rewire . | . . Trap . | . . Miscellaneous . | . . Route ------- -11/Scrapyard -10/Materials (discovered 2 exits: [*Min x2]) History --------- Turn | Location | Event 7 | -11/Scrapyard | Discovered new exit (range 3) 27 | -11/Scrapyard | Entered Materials 323 | -10/Materials | Build established: Mutant 648 | -10/Materials | Discovered new exit (range 16) 703 | -10/Materials | Discovered new exit (range 14) 813 | -10/Materials | Core integrity fell below 50% 839 | -10/Materials | Core integrity fell below 20% 849 | -10/Materials | Lost 7 parts (1p2n1u3w) 894 | -10/Materials | Destroyed by G-47 Trooper with Particle Gun Last Messages --------------- 00814_ Wheel destroyed. 00818_ Mining Laser destroyed. 00821_ Dropped Huge Storage Unit. 00823_ R-06 Scavenger collects Huge Storage Unit. 00827_ Critical hit (Burn: +37). 00851_ K-01 Serf collects debris. 00859_ Acquired Beam Cannon. 00861_ K-01 Serf cleans the Integration Channel. 00862_ Acquired Beam Cannon. 00864_ K-01 Serf cleans the Integration Channel. 00868_ K-01 Serf collects debris. 00872_ Integration Channel disabled. 00878_ Tractor Beam destroyed. 00878_ Critical hit (Burn: +37). 00886_ G-47 Trooper overheating. 00888_ Beam Cannon broken. 00888_ Overheating: Short circuit. 00890_ G-47 Trooper overheating. 00893_ G-47 Trooper heat damages Aluminum Leg. 00893_ G-47 Trooper overheating. Map ----- +----------------------------------------------------+ | | | | | | | | | | | | | | | | | | | | | | | | | | | | | | | | | | | | | ???????##########??#???#############?????????????? | | ???????# #???# ] T #?????????????? | | ???????# #???# ] #?????????????? | | ???????# """ #???# #?????????????? | | ???????# """ #???# """ """ #?????????????? | | ???????# " " """ #???# """""""" #?????????????? | | ???????# "R" ##??# r""""" #?????????????? | | ???#???# """ #???# @ g k #?????????????? | | ??###########+###############+#############??????? | | ??# ????? | | #?# ####???????????? | | ??# """ % #??????????????? | | ??###########+####!!"T" #??????????????? | | ???#?# #""= " " ##+#??????????????? | | ?????# #"Y[*! #?????????????????? | | ?????# """" #""!= o #?????????????????? | | #????# """" ###% """ #??? ?????????????? | | ?????# """" ### """"" #?????????????????? | | ?????# #?# """"" #?######??????????? | | ?????# ### """"" # !#??????????? | | ?????# + """ # #??????????? | | ################ %+ """ #??????????? | | ####### # """ #??????????? | | %% % # """ #??????????? | | ######### ######### #? #??????????? | | ###### #???????# #????##?# ################??? | | ######+#####???# #???????# ?? | | ## #???# ##??????# % ^ ?? | | ## #???# ## ????# % ?? | | # #??## ## ??# ############+##???? | | # #???# ## """ # #?????????????????? | | T + #???# ## """ + #?????????????????? | +----------------------------------------------------+ Best States ------------- Heat Dissipation 25 Energy Generation 10 Energy Capacity 250 Matter Stores 300 Matter Capacity 300 Sight Range 16 Terrain Scan Range 16 Terrain Scan Density 10 Evasion (%) 44 Recoil Reduction 2 Item Schematics ----------------- None Robot Schematics ------------------ None Fabricated ------------ Nothing Alien Tech Used ----------------- None Achievements -------------- None Challenges ------------ None Game ------ Seed PhasingMetafiberGravjet Manual? 0 Play Time 00:08:14 Cumulative 73.3 hours Start 2024.11.14 @ 13:58:36 End 2024.11.14 @ 14:06:21 Sessions 1 Manual Loads 0 Difficulty Rogue Special Mode None Game No. 125 Rogue 125 Adventurer 0 Explorer 0 Win Type - Total 0 Types 0/0/0/0/0/0/0/0/0 Lore% 41 Gallery% 35 Achievement% 34 Wizard Run 0 Options --------- Layout 0 ASCII 0 Keyboard 0 Movement Mouse Keybinds 0 Fullscreen 1 Font 24/Smallcaps Map View 91x25 Zoom Use 93% Tactical HUD 1 Map Filters NONE Filters NONE Steam 1 RUN: 53d545fa-ebd7-4862-a515-7eb5de3fe965